bitfinex-derivatives/quotes_BTCF0:USTF0_20250424
["timestamp","ask_amount","ask_price","bid_price","bid_amount"]
[1745526490244,0.0825,93576.0,93575.0,0.08809868]
[1745526490540,0.0825,93576.0,93575.0,0.06242207]
[1745526492044,0.1067914,93602.0,93588.0,0.1068064]
[1745526492255,0.106792,93601.0,93591.0,0.1068023]
[1745526492449,0.0533935,93605.0,93592.0,0.1068013]
[1745526492750,0.36877148,93608.0,93600.0,0.1067924]
[1745526493046,0.38204775,93608.0,93600.0,0.1067924]
[1745526493643,0.074,93607.0,93603.0,0.1067889]
[1745526493835,0.074,93607.0,93598.0,0.27190088]
[1745526493836,0.074,93607.0,93604.0,0.1067878]
[1745526494236,0.246,93607.0,93603.0,0.0311]
[1745526494437,0.246,93607.0,93600.0,0.0543962]
[1745526495045,0.246,93607.0,93601.0,0.0362]
[1745526495247,0.0364,93606.0,93601.0,0.0362]
[1745526495746,0.0384,93605.0,93603.0,0.001]
[1745526496246,0.0364,93604.0,93601.0,0.001]
[1745526496644,0.0384,93603.0,93601.0,0.001]
[1745526497249,0.0364,93602.0,93599.0,0.1067938]
[1745526497738,0.0384,93601.0,93599.0,0.1067938]
[1745526498149,0.0397,93600.0,93599.0,0.1067938]
[1745526499145,0.0407,93600.0,93599.0,0.1067938]
[1745526500348,0.2127,93600.0,93599.0,0.1067938]
[1745526500548,0.2127,93600.0,93599.0,0.1077938]
[1745526501350,0.2167,93600.0,93599.0,0.1077938]
[1745526501752,0.0447,93600.0,93599.0,0.1077938]
[1745526502048,0.0447,93600.0,93599.0,0.001]
[1745526503354,0.2167,93600.0,93599.0,0.001]
[1745526504256,0.0447,93600.0,93599.0,0.001]
[1745526504856,0.0447,93600.0,93597.0,0.34842952]
[1745526505049,0.0765,93599.0,93597.0,0.34842952]
[1745526505556,0.0394,93598.0,93597.0,0.34842952]
[1745526505956,0.076,93598.0,93597.0,0.34842952]
[1745526506454,0.076,93598.0,93597.0,0.34942952]
[1745526506854,0.076,93598.0,93597.0,0.35042952]
[1745526507448,0.08,93598.0,93597.0,0.35042952]
[1745526507856,0.082,93598.0,93597.0,0.35042952]
[1745526508653,0.082,93598.0,93597.0,0.45722562]
[1745526509049,0.082,93598.0,93597.0,0.35042952]
[1745526511765,0.082,93598.0,93597.0,0.45722562]
[1745526511955,0.082,93598.0,93597.0,0.43155373]
[1745526512154,0.082,93598.0,93597.0,0.32475763]
[1745526514961,0.082,93598.0,93597.0,0.31138686]
[1745526515864,0.082,93598.0,93597.0,0.29266778]
[1745526523666,0.082,93598.0,93597.0,0.002]
[1745526525366,0.082,93598.0,93595.0,0.0376]
[1745526525769,0.082,93598.0,93597.0,0.1067961]
[1745526525965,0.082,93598.0,93596.0,0.0533986]
[1745526526164,0.082,93598.0,93597.0,0.0365]
[1745526527563,0.082,93598.0,93597.0,0.1432961]
[1745526528259,0.08,93598.0,93597.0,0.1442961]
[1745526528466,0.082,93598.0,93597.0,0.1442961]
[1745526528670,0.083,93598.0,93597.0,0.0375]
[1745526529670,0.083,93598.0,93597.0,0.1442961]
[1745526530661,0.083,93598.0,93597.0,0.0375]
[1745526531669,0.083,93598.0,93597.0,0.1442961]
[1745526534969,0.00797148,93608.0,93597.0,0.2107]
[1745526535168,0.0373,93619.0,93607.0,0.3608]
[1745526535367,0.0373,93619.0,93618.0,0.1067722]
[1745526535566,0.04984045,93619.0,93616.0,0.06636]
[1745526535870,0.0395,93618.0,93617.0,0.0382]
[1745526536061,0.0395,93618.0,93617.0,0.0342]
[1745526536670,0.04756467,93618.0,93617.0,0.0342]
[1745526536870,0.05256467,93618.0,93617.0,0.0342]
[1745526537464,0.05556467,93618.0,93617.0,0.0352]
[1745526538273,0.05556467,93618.0,93617.0,0.1419733]
[1745526538465,0.05556467,93618.0,93617.0,0.1807733]
[1745526541273,0.05556467,93618.0,93617.0,0.0352]
[1745526542575,0.05556467,93618.0,93617.0,0.001]
[1745526545864,0.05556467,93618.0,93617.0,0.0374]
[1745526546075,0.05556467,93618.0,93617.0,0.001]
[1745526546572,0.05556467,93618.0,93617.0,0.0374]
[1745526551167,0.09166467,93618.0,93617.0,0.0374]
[1745526551567,0.09166467,93618.0,93617.0,0.001]
[1745526552185,0.26366467,93618.0,93617.0,0.001]
[1745526553079,0.09166467,93618.0,93617.0,0.001]
[1745526555079,0.09166467,93618.0,93617.0,0.173]
[1745526556972,0.09166467,93618.0,93617.0,0.15963233]
[1745526562790,0.09166467,93618.0,93617.0,0.13396629]
[1745526566895,0.09166467,93618.0,93604.0,0.0759]
[1745526566896,0.45246467,93618.0,93603.0,0.3608]
[1745526567094,0.1067785,93613.0,93606.0,0.06628]
[1745526567293,0.0758,93612.0,93606.0,0.06628]
[1745526567993,0.1825798,93612.0,93606.0,0.06628]
[1745526568291,0.3608,93610.0,93600.0,0.11075174]
[1745526568486,0.1096,93609.0,93601.0,0.06628]
[1745526569099,0.2816,93609.0,93603.0,0.001]
[1745526569500,0.2826,93609.0,93601.0,0.06628]
[1745526570701,0.2826,93609.0,93601.0,0.42708]
[1745526574904,0.2826,93609.0,93601.0,0.06628]
[1745526575097,0.2826,93609.0,93601.0,0.42708]
[1745526575598,0.2826,93609.0,93601.0,0.5338715]
[1745526575906,0.2826,93609.0,93602.0,0.1067901]
[1745526576103,0.2826,93609.0,93601.0,0.42708]
[1745526576304,0.2826,93609.0,93602.0,0.1067898]
[1745526576605,0.2826,93609.0,93603.0,0.1067885]
[1745526577403,0.2826,93609.0,93604.0,0.0381]
[1745526578804,0.2826,93609.0,93604.0,0.1448878]
[1745526579503,0.2826,93609.0,93604.0,0.1067878]
[1745526582105,0.2826,93609.0,93603.0,0.0533945]
[1745526584406,0.2816,93609.0,93605.0,0.1067867]
[1745526584602,0.2826,93609.0,93605.0,0.1067867]
[1745526585510,0.2816,93609.0,93605.0,0.1067867]
[1745526585704,0.2826,93609.0,93605.0,0.1067867]
[1745526588506,0.2826,93609.0,93603.0,0.1067885]
[1745526588698,0.2826,93609.0,93603.0,0.1067889]
[1745526589101,0.2826,93609.0,93601.0,0.06628]
[1745526589308,0.2826,93609.0,93603.0,0.0533946]
[1745526589610,0.2826,93609.0,93605.0,0.1067868]
[1745526591908,0.2816,93609.0,93605.0,0.1067868]
[1745526592111,0.2826,93609.0,93603.0,0.04002542]
[1745526592411,0.2826,93609.0,93606.0,0.1067851]
[1745526592910,0.2826,93609.0,93607.0,0.1067846]
[1745526593509,0.2826,93609.0,93606.0,0.1067855]
[1745526598613,0.2826,93609.0,93604.0,0.1601809]
[1745526598813,0.2826,93609.0,93605.0,0.1067862]
[1745526600016,0.2826,93609.0,93605.0,0.09341656]
[1745526600414,0.2816,93609.0,93605.0,0.09341656]
[1745526600717,0.2826,93609.0,93605.0,0.09341656]
[1745526600914,0.2816,93609.0,93605.0,0.09341656]
[1745526601112,0.2826,93609.0,93604.0,0.1067871]
[1745526601716,0.2826,93609.0,93605.0,0.1067863]
[1745526603914,0.2816,93609.0,93605.0,0.1067863]
[1745526604120,0.2826,93609.0,93605.0,0.1067863]
[1745526604421,0.2816,93609.0,93606.0,0.1067858]
[1745526604618,0.2826,93609.0,93606.0,0.1067858]
[1745526605517,0.2816,93609.0,93606.0,0.1067858]
[1745526605711,0.2826,93609.0,93606.0,0.1067858]
[1745526607522,0.2826,93609.0,93604.0,0.053394]
[1745526607821,0.2826,93609.0,93606.0,0.1067853]
[1745526608625,0.2816,93609.0,93606.0,0.1067853]
[1745526608922,0.2826,93609.0,93606.0,0.1067853]
[1745526609124,0.2816,93609.0,93606.0,0.1067853]
[1745526609320,0.2826,93609.0,93606.0,0.1067853]
[1745526610021,0.2826,93609.0,93607.0,0.1067843]
[1745526610224,0.2826,93609.0,93606.0,0.1067853]
[1745526610421,0.2826,93609.0,93603.0,0.0533946]
[1745526610622,0.2826,93609.0,93604.0,0.053394]
[1745526610928,0.2826,93609.0,93606.0,0.1067858]
[1745526611225,0.2826,93609.0,93602.0,0.0362]
[1745526611226,0.2826,93609.0,93605.0,0.1067869]
[1745526611424,0.2826,93609.0,93606.0,0.1067849]
[1745526611826,0.2826,93609.0,93604.0,0.0533938]
[1745526612020,0.2826,93609.0,93607.0,0.1067839]
[1745526612226,0.2826,93609.0,93606.0,0.1067858]
[1745526612833,0.2826,93609.0,93604.0,0.1601811]
[1745526613017,0.2826,93609.0,93602.0,0.0895947]
[1745526613330,0.1106,93609.0,93606.0,0.1067858]
[1745526613728,0.1106,93609.0,93604.0,0.0533939]
[1745526614226,0.2826,93609.0,93605.0,0.1067866]
[1745526614425,0.2816,93609.0,93605.0,0.1067866]
[1745526614630,0.2826,93609.0,93606.0,0.1067857]
[1745526614931,0.2816,93609.0,93606.0,0.1067857]
[1745526615232,0.2826,93609.0,93604.0,0.0533939]
[1745526615431,0.2826,93609.0,93605.0,0.1067864]
[1745526615826,0.2826,93609.0,93605.0,0.08111704]
[1745526616134,0.2826,93609.0,93606.0,0.1067858]
[1745526617230,0.2816,93609.0,93606.0,0.1067858]
[1745526617432,0.2826,93609.0,93606.0,0.1067858]
[1745526618832,0.2826,93609.0,93605.0,0.1067862]
[1745526619932,0.2826,93609.0,93606.0,0.1067854]
[1745526620127,0.2826,93609.0,93604.0,0.053394]
[1745526620630,0.2826,93609.0,93605.0,0.1067861]
[1745526621133,0.2826,93609.0,93605.0,0.09341668]
[1745526621331,0.2816,93609.0,93605.0,0.09341668]
[1745526621540,0.2826,93609.0,93604.0,0.053394]
[1745526621726,0.2826,93609.0,93602.0,0.0533952]
[1745526621925,0.2816,93609.0,93602.0,0.0905952]
[1745526622125,0.1106,93609.0,93602.0,0.0905952]
[1745526622419,0.1106,93609.0,93606.0,0.1067852]
[1745526622632,0.3608,93608.0,93606.0,0.1067852]
[1745526623137,0.0725,93607.0,93606.0,0.1067852]
[1745526624136,0.2445,93607.0,93606.0,0.1067852]
[1745526625031,0.2455,93607.0,93606.0,0.1077852]
[1745526625232,0.0735,93607.0,93606.0,0.1077852]
[1745526627733,0.0735,93607.0,93606.0,0.001]
[1745526628323,0.0735,93607.0,93606.0,0.1077858]
[1745526631528,0.0735,93607.0,93606.0,0.09441635]
[1745526637041,0.0735,93607.0,93606.0,0.06874646]
[1745526637436,0.0735,93607.0,93602.0,0.0908952]
[1745526637629,0.0735,93607.0,93604.0,0.1067871]
[1745526637836,0.0735,93607.0,93603.0,0.0533942]
[1745526638140,0.0735,93607.0,93604.0,0.1067881]
[1745526638342,0.0735,93607.0,93605.0,0.1067869]
[1745526639647,0.0725,93607.0,93605.0,0.1067869]
[1745526639843,0.0735,93607.0,93605.0,0.1067869]
[1745526640845,0.0725,93607.0,93605.0,0.1067869]
[1745526641047,0.0735,93607.0,93605.0,0.1067869]
[1745526642050,0.0735,93607.0,93605.0,0.09341741]
[1745526642945,0.0735,93607.0,93606.0,0.1067858]
[1745526643837,0.0735,93607.0,93604.0,0.1601809]
[1745526644238,0.0735,93607.0,93583.0,0.4142057]
[1745526644542,0.3608,93591.0,93583.0,0.3608]
[1745526644744,0.3608,93591.0,93575.0,0.4149]
[1745526644745,0.1068113,93584.0,93575.0,0.4149]
[1745526644940,0.1068218,93575.0,93571.0,0.0662]
[1745526645148,0.1068218,93575.0,93568.0,0.00039]
[1745526645149,0.3608,93572.0,93568.0,0.00039]
[1745526645451,0.0752,93571.0,93568.0,0.00039]
[1745526646160,0.2472,93571.0,93568.0,0.00039]
[1745526646459,0.2472,93571.0,93568.0,0.00239]
[1745526647458,0.2472,93571.0,93568.0,0.00139]
[1745526647658,0.2472,93571.0,93568.0,0.00339]
[1745526648247,0.25508353,93571.0,93568.0,0.00339]
[1745526648656,0.25508353,93571.0,93568.0,0.00439]
[1745526650465,0.25508353,93571.0,93570.0,0.1068269]
[1745526651056,0.08308353,93571.0,93570.0,0.1809269]
[1745526651960,0.08308353,93571.0,93570.0,0.1829269]
[1745526652665,0.08308353,93571.0,93570.0,0.0761]
[1745526652865,0.08308353,93571.0,93570.0,0.002]
[1745526653166,0.08408353,93571.0,93570.0,0.004]
[1745526654968,0.08408353,93571.0,93569.0,0.09745274]
[1745526655262,0.08408353,93571.0,93570.0,0.1068269]
[1745526657474,0.08408353,93571.0,93569.0,0.004]
[1745526657869,0.08408353,93571.0,93570.0,0.002]
[1745526658172,0.25608353,93571.0,93570.0,0.002]
[1745526658672,0.25708353,93571.0,93569.0,0.004]
[1745526658865,0.25708353,93571.0,93570.0,0.001]
[1745526659377,0.25608353,93571.0,93570.0,0.002]
[1745526659873,0.25608353,93571.0,93570.0,0.001]
[1745526660675,0.25608353,93571.0,93570.0,0.002]
[1745526661674,0.25608353,93571.0,93570.0,0.004]
[1745526661675,0.25708353,93571.0,93570.0,0.004]
[1745526662082,0.25708353,93571.0,93570.0,0.003]
[1745526662267,0.25708353,93571.0,93570.0,0.005]
[1745526663171,0.25508353,93571.0,93567.0,0.1068302]
[1745526663377,0.25708353,93571.0,93570.0,0.005]
[1745526664175,0.08508353,93571.0,93570.0,0.1118269]
[1745526665175,0.08408353,93571.0,93570.0,0.1098269]
[1745526665369,0.08408353,93571.0,93570.0,0.1068269]
[1745526665565,0.08408353,93571.0,93570.0,0.1098269]
[1745526665566,0.08508353,93571.0,93570.0,0.1098269]
[1745526665770,0.08508353,93571.0,93570.0,0.1128269]
[1745526666377,0.08508353,93571.0,93570.0,0.1138269]
[1745526667677,0.08408353,93571.0,93570.0,0.1108269]
[1745526667878,0.08508353,93571.0,93570.0,0.1148269]
[1745526670380,0.08508353,93571.0,93570.0,0.10145251]
[1745526673569,0.08508353,93571.0,93570.0,0.07577365]
[1745526676288,0.08508353,93571.0,93570.0,0.14487365]
[1745526677087,0.01215949,93584.0,93583.0,0.1068121]
[1745526677389,0.0357,93587.0,93584.0,0.1068106]
[1745526677581,0.0358,93586.0,93582.0,0.4476065]
[1745526677785,0.0358,93586.0,93582.0,0.3942]
[1745526677988,0.04767836,93586.0,93582.0,0.5010123]
[1745526678381,0.001,93584.0,93583.0,0.002]
[1745526679388,0.04867836,93586.0,93582.0,0.3628]
[1745526679583,0.0358,93583.0,93582.0,0.3628]
[1745526679985,0.0358,93583.0,93582.0,0.3618]
[1745526680386,0.0715,93583.0,93582.0,0.3618]
[1745526680688,0.0715,93583.0,93582.0,0.001]
[1745526680893,0.0715,93583.0,93580.0,0.16064207]
[1745526681185,0.0715,93583.0,93580.0,0.05382727]
[1745526681383,0.0715,93583.0,93580.0,0.16064197]
[1745526681584,0.0715,93583.0,93582.0,0.003]
[1745526681783,0.0725,93583.0,93582.0,0.007]
[1745526682094,0.0735,93583.0,93582.0,0.004]
[1745526682593,0.0735,93583.0,93581.0,0.1068142]
[1745526682791,0.0735,93583.0,93582.0,0.004]
[1745526683990,0.0725,93583.0,93582.0,0.004]
[1745526684295,0.0735,93583.0,93582.0,0.009]
[1745526685087,0.3523121,93583.0,93582.0,0.009]
[1745526685794,0.2455,93583.0,93582.0,0.009]
[1745526690398,0.3523121,93583.0,93582.0,0.009]
[1745526690998,0.3523121,93583.0,93582.0,0.00395747]
[1745526691802,0.1068195,93577.0,93571.0,0.0662]
[1745526692101,0.1053,93576.0,93571.0,0.0662]
[1745526692593,0.1053,93576.0,93566.0,0.00106876]
[1745526692794,0.1068223,93575.0,93567.0,0.0662]
[1745526693092,0.3608,93572.0,93571.0,0.002]
[1745526693392,0.4676246,93572.0,93571.0,0.002]
[1745526693899,0.3608,93572.0,93567.0,0.0682]
[1745526694099,0.1068288,93569.0,93567.0,0.0682]
[1745526694296,0.0693,93568.0,93567.0,0.0682]
[1745526694490,0.0693,93568.0,93567.0,0.0662]
[1745526694691,0.0693,93568.0,93566.0,0.00106876]
[1745526694897,0.0332,93567.0,93566.0,0.00106876]
[1745526695395,0.1025,93567.0,93566.0,0.00106876]
[1745526696099,0.2745,93567.0,93566.0,0.00106876]
[1745526697692,0.2765,93567.0,93566.0,0.00306876]
[1745526701302,0.2765,93567.0,93566.0,0.03636876]
[1745526701505,0.2765,93567.0,93566.0,0.02299344]
[1745526702200,0.2765,93567.0,93565.0,0.10414582]
[1745526702598,0.2765,93567.0,93566.0,0.1068315]
[1745526703303,0.2755,93567.0,93566.0,0.1068315]
[1745526703503,0.2765,93567.0,93566.0,0.1068315]
[1745526705410,0.2765,93567.0,93566.0,0.1068315]
[1745526707307,0.2765,93567.0,93564.0,0.467633]
[1745526707308,0.2765,93567.0,93564.0,0.3608]
[1745526708011,0.2765,93567.0,93565.0,0.1068317]
[1745526708404,0.2755,93567.0,93565.0,0.1068317]
[1745526708603,0.2765,93567.0,93565.0,0.1068317]
[1745526709309,0.2765,93567.0,93566.0,0.1068315]
[1745526710708,0.2755,93567.0,93566.0,0.1068315]
[1745526711197,0.2765,93567.0,93566.0,0.1068315]
[1745526711398,0.2765,93567.0,93564.0,0.3608]
[1745526711816,0.2765,93567.0,93565.0,0.1068322]
[1745526712107,0.2765,93567.0,93565.0,0.09345682]
[1745526712410,0.2765,93567.0,93564.0,0.3608]
[1745526713013,0.2765,93567.0,93565.0,0.1068323]
[1745526714411,0.2765,93567.0,93566.0,0.1068315]
[1745526714611,0.2765,93567.0,93564.0,0.5210497]
[1745526714808,0.2765,93567.0,93565.0,0.1068323]
[1745526715304,0.2765,93567.0,93564.0,0.3608]
[1745526715913,0.2765,93567.0,93564.0,0.4676335]
[1745526716107,0.2765,93567.0,93565.0,0.1068326]
[1745526716309,0.2755,93567.0,93565.0,0.1068321]
[1745526716502,0.2765,93567.0,93565.0,0.1068321]
[1745526716703,0.2765,93567.0,93564.0,0.3608]
[1745526717010,0.2765,93567.0,93565.0,0.1068323]
[1745526717212,0.1045,93567.0,93565.0,0.1068323]
[1745526717405,0.1045,93567.0,93564.0,0.3608]
[1745526717604,0.1045,93567.0,93565.0,0.106832]
[1745526717806,0.1045,93567.0,93566.0,0.1068315]
[1745526718205,0.2755,93567.0,93566.0,0.1068315]
[1745526718414,0.2765,93567.0,93566.0,0.1068315]
[1745526719908,0.2755,93567.0,93566.0,0.1068315]
[1745526720114,0.2765,93567.0,93566.0,0.1068315]
[1745526720714,0.2755,93567.0,93566.0,0.1068315]
[1745526720918,0.2765,93567.0,93566.0,0.1068315]
[1745526721814,0.2765,93567.0,93566.0,0.1361315]
[1745526722019,0.2765,93567.0,93566.0,0.1706315]
[1745526722210,0.2765,93567.0,93566.0,0.15725619]
[1745526723220,0.2765,93567.0,93566.0,0.09345619]
[1745526725113,0.2765,93567.0,93566.0,0.06777559]
[1745526725518,0.2765,93567.0,93566.0,0.04905015]
[1745526728319,0.1045,93567.0,93566.0,0.04905015]
[1745526732523,0.1045,93567.0,93565.0,0.0534163]
[1745526733119,0.1045,93567.0,93566.0,0.1068315]
[1745526733422,0.1045,93567.0,93564.0,0.0534168]
[1745526733825,0.1045,93567.0,93566.0,0.1068315]
[1745526735018,0.1035,93567.0,93566.0,0.1068315]
[1745526735318,0.2765,93567.0,93566.0,0.1068315]
[1745526739635,0.209,93567.0,93566.0,0.1068315]
[1745526739842,0.209,93567.0,93566.0,0.1392315]
[1745526740138,0.037,93567.0,93566.0,0.1392315]
[1745526745651,0.037,93567.0,93566.0,0.12585643]
[1745526745853,0.037,93567.0,93566.0,0.10017629]
[1745526746248,0.037,93567.0,93566.0,0.08145119]
[1745526753155,0.037,93567.0,93566.0,0.10595119]
[1745526755960,0.037,93567.0,93566.0,0.0569]
[1745526756757,0.037,93567.0,93566.0,0.1637315]
[1745526760358,0.037,93567.0,93566.0,0.1313315]
[1745526766072,0.037,93567.0,93566.0,0.1068315]
[1745526774873,0.037,93567.0,93565.0,0.3608]
[1745526775174,0.0619,93566.0,93565.0,0.06612]
[1745526775470,0.1153159,93566.0,93565.0,0.04582505]
[1745526776178,0.2873159,93566.0,93565.0,0.04582505]
[1745526776678,0.2883159,93566.0,93565.0,0.03244942]
[1745526777079,0.2893159,93566.0,93565.0,0.03244942]
[1745526778079,0.2359,93566.0,93565.0,0.03244942]
[1745526778280,0.3427315,93566.0,93565.0,0.03244942]
[1745526778480,0.2359,93566.0,93565.0,0.03244942]
[1745526778775,0.2359,93566.0,93562.0,0.06612]
[1745526778972,0.0321,93565.0,93562.0,0.06612]
[1745526779380,0.0304,93564.0,93562.0,0.06612]
[1745526780080,0.0321,93563.0,93562.0,0.06612]
[1745526780480,0.0625,93563.0,93562.0,0.06612]
[1745526780682,0.0625,93563.0,93561.0,0.1068366]
[1745526780988,0.0625,93563.0,93560.0,0.06612]
[1745526781196,0.2345,93563.0,93560.0,0.06612]
[1745526781598,0.2345,93563.0,93561.0,0.1068368]
[1745526781999,0.2355,93563.0,93561.0,0.1068368]
[1745526782497,0.2355,93563.0,93562.0,0.1068361]
[1745526782692,0.2365,93563.0,93562.0,0.1068361]
[1745526782893,0.2365,93563.0,93560.0,0.1195387]
[1745526783091,0.0645,93563.0,93560.0,0.1195387]
[1745526783393,0.0645,93563.0,93562.0,0.1068361]
[1745526784796,0.0635,93563.0,93562.0,0.1068361]
[1745526785099,0.0645,93563.0,93562.0,0.1068361]
[1745526791208,0.0645,93563.0,93560.0,0.06612]
[1745526791405,0.0645,93563.0,93560.0,0.172958]
[1745526791706,0.0645,93563.0,93561.0,0.1068371]
[1745526792003,0.0645,93563.0,93560.0,0.06612]
[1745526792209,0.0645,93563.0,93560.0,0.1729581]
[1745526792409,0.0635,93563.0,93561.0,0.106837]
[1745526792609,0.0645,93563.0,93560.0,0.1729581]
[1745526793409,0.0645,93563.0,93560.0,0.05274467]
[1745526795602,0.0645,93563.0,93560.0,0.15958297]
[1745526795811,0.0645,93563.0,93560.0,0.05274467]
[1745526796005,0.0645,93563.0,93561.0,0.1068368]
[1745526796609,0.0645,93563.0,93560.0,0.05274467]
[1745526797808,0.1068372,93561.0,93560.0,0.05274467]
[1745526798016,0.106841,93558.0,93555.0,0.06608]
[1745526798203,0.0624,93557.0,93555.0,0.06608]
[1745526798409,0.0955,93557.0,93555.0,0.06608]
[1745526799813,0.0965,93557.0,93555.0,0.06608]
[1745526800115,0.2685,93557.0,93555.0,0.06608]
[1745526800414,0.2695,93557.0,93555.0,0.06608]
[1745526801411,0.28107887,93557.0,93555.0,0.06608]
[1745526804120,0.10907887,93557.0,93555.0,0.05270288]
[1745526806225,0.28107887,93557.0,93555.0,0.05270288]
[1745526807121,0.10907887,93557.0,93555.0,0.05270288]
[1745526811123,0.21592157,93557.0,93555.0,0.05270288]
[1745526813022,0.21592157,93557.0,93555.0,0.02701877]
[1745526813223,0.1068429,93556.0,93555.0,0.02701877]
[1745526813725,0.1725429,93556.0,93555.0,0.02701877]
[1745526814024,0.1725429,93556.0,93555.0,0.01364163]
[1745526815427,0.1735429,93556.0,93555.0,0.01364163]
[1745526816226,0.1745429,93556.0,93555.0,0.01364163]
[1745526818624,0.0677,93556.0,93555.0,0.01364163]
[1745526825034,0.0677,93556.0,93555.0,0.00572384]
[1745526826832,0.1745429,93556.0,93555.0,0.00572384]
[1745526827036,0.0677,93556.0,93555.0,0.00572384]
[1745526827228,0.2397,93556.0,93555.0,0.00572384]
[1745526828136,0.0677,93556.0,93555.0,0.00572384]
[1745526828333,0.0677,93556.0,93547.0,0.0534263]
[1745526828539,0.0677,93556.0,93551.0,0.06608]
[1745526829332,0.053422,93555.0,93551.0,0.06608]
[1745526829533,0.1068475,93552.0,93551.0,0.06608]
[1745526829734,0.0849226,93554.0,93551.0,0.06608]
[1745526830037,0.0328,93553.0,93551.0,0.06608]
[1745526830241,0.3116465,93553.0,93551.0,0.06608]
[1745526830432,0.0304,93552.0,93551.0,0.06608]
[1745526831541,0.0632,93552.0,93551.0,0.06608]
[1745526832744,0.0642,93552.0,93551.0,0.06608]
[1745526833238,0.0652,93552.0,93551.0,0.06608]
[1745526834945,0.0652,93552.0,93551.0,0.05270263]
[1745526836338,0.0652,93552.0,93551.0,0.02701808]
[1745526837247,0.2372,93552.0,93551.0,0.02701808]
[1745526839544,0.1068542,93547.0,93543.0,0.00534511]
[1745526839746,0.3608,93544.0,93543.0,0.00534511]
[1745526840250,0.3608,93544.0,93543.0,0.11220291]
[1745526840251,0.5328,93544.0,93543.0,0.11220291]
[1745526840452,0.5328,93544.0,93543.0,0.00534511]
[1745526841346,0.5328,93544.0,93543.0,0.11220291]
[1745526842247,0.3618,93544.0,93543.0,0.11220291]
[1745526842448,0.001,93544.0,93543.0,0.11220291]
[1745526842958,0.002,93544.0,93543.0,0.11220291]
[1745526844858,0.002,93544.0,93543.0,0.0988245]
[1745526850055,0.002,93544.0,93543.0,0.07313805]
[1745526854254,0.002,93544.0,93541.0,0.0534294]
[1745526854556,0.0644,93543.0,93540.0,0.0534304]
[1745526854751,0.0644,93543.0,93539.0,0.06608]
[1745526854752,0.3608,93541.0,93539.0,0.06608]
[1745526854958,0.0644,93540.0,93539.0,0.06608]
[1745526855159,0.1068646,93537.0,93536.0,0.0010691]
[1745526855451,0.1068646,93537.0,93528.0,0.06608]
[1745526855452,0.1068679,93535.0,93528.0,0.16064398]
[1745526855657,0.0329,93534.0,93528.0,0.16064398]
[1745526855856,0.0644,93534.0,93529.0,0.1068737]
[1745526856750,0.0654,93534.0,93529.0,0.1068737]
[1745526857159,0.0644,93534.0,93529.0,0.1068737]
[1745526857359,0.0654,93534.0,93529.0,0.1068737]
[1745526857553,0.0664,93534.0,93529.0,0.1068737]
[1745526859361,0.0664,93534.0,93530.0,0.1068725]
[1745526862366,0.0664,93534.0,93528.0,0.05376948]
[1745526862765,0.1068738,93529.0,93528.0,0.05376948]
[1745526862964,0.1068738,93529.0,93514.0,1.4629651]
[1745526862965,0.1068751,93528.0,93516.0,0.1194839]
[1745526863260,0.3608,93523.0,93519.0,0.0534426]
[1745526863461,0.03,93527.0,93525.0,0.1068779]
[1745526864752,0.03,93527.0,93524.0,0.1068788]
[1745526865364,0.031,93527.0,93524.0,0.1068788]
[1745526865565,0.031,93527.0,93525.0,0.09349678]
[1745526865765,0.031,93527.0,93526.0,0.1068772]
[1745526865954,0.032,93527.0,93526.0,0.1068772]
[1745526866158,0.032,93527.0,93524.0,0.1068788]
[1745526866768,0.031,93527.0,93524.0,0.1068788]
[1745526866966,0.032,93527.0,93524.0,0.1068788]
[1745526867265,0.032,93527.0,93525.0,0.1068778]
[1745526867659,0.032,93527.0,93519.0,0.3608]
[1745526867860,0.032,93527.0,93517.0,0.0534434]
[1745526868166,0.3608,93525.0,93521.0,0.1068826]
[1745526868368,0.3608,93525.0,93519.0,0.0534421]
[1745526868561,0.3608,93525.0,93520.0,0.1068829]
[1745526868864,0.3608,93525.0,93521.0,0.1068828]
[1745526869463,0.3618,93525.0,93521.0,0.1068828]
[1745526869662,0.3618,93525.0,93519.0,0.0534425]
[1745526869859,0.3628,93525.0,93519.0,0.0534425]
[1745526870264,0.3628,93525.0,93520.0,0.053442]
[1745526870265,0.002,93525.0,93520.0,0.053442]
[1745526870666,0.002,93525.0,93522.0,0.0534407]
[1745526870868,0.002,93525.0,93520.0,0.053442]
[1745526870869,0.002,93525.0,93523.0,0.1068798]
[1745526871464,0.002,93525.0,93518.0,0.4142431]
[1745526871669,0.002,93525.0,93520.0,0.106883]
[1745526871870,0.001,93525.0,93520.0,0.106883]
[1745526872068,0.002,93525.0,93520.0,0.106883]
[1745526872368,0.002,93525.0,93521.0,0.1068825]
[1745526873361,0.001,93525.0,93521.0,0.1068825]
[1745526873561,0.002,93525.0,93521.0,0.1068825]
[1745526874370,0.001,93525.0,93521.0,0.1068825]
[1745526874561,0.002,93525.0,93521.0,0.1068825]
[1745526875971,0.002,93525.0,93521.0,0.09350097]
[1745526879372,0.032,93524.0,93521.0,0.09350097]
[1745526880972,0.033,93524.0,93521.0,0.09350097]
[1745526881373,0.0313,93523.0,93521.0,0.09350097]
[1745526882279,0.0315,93522.0,93521.0,0.09350097]
[1745526882474,0.03950863,93522.0,93521.0,0.09350097]
[1745526883481,0.05111488,93522.0,93521.0,0.09350097]
[1745526884071,0.05211488,93522.0,93521.0,0.09350097]
[1745526884876,0.05311488,93522.0,93521.0,0.09350097]
[1745526887278,0.05311488,93522.0,93521.0,0.08011948]
[1745526893586,0.05311488,93522.0,93521.0,0.05442695]
[1745526897287,0.05311488,93522.0,93520.0,0.053442]
[1745526897488,0.0306,93521.0,93520.0,0.053442]
[1745526897880,0.0623,93521.0,93520.0,0.053442]
[1745526899889,0.0643,93521.0,93520.0,0.053442]
[1745526902283,0.0643,93521.0,93520.0,0.02775006]
[1745526902890,0.0643,93521.0,93520.0,0.106884]
[1745526911009,0.0643,93521.0,93520.0,0.09350248]